bitfinex/quotes_BTCUSD_20260125
["timestamp","ask_amount","ask_price","bid_price","bid_amount"]
[1769367786381,0.1758,87381.0,87376.0,0.00047148]
[1769367786783,0.1758,87381.0,87370.0,0.20259753]
[1769367787849,0.1758,87385.0,87370.0,0.20259753]
[1769367788043,1.0670711,87384.0,87370.0,0.20259753]
[1769367789069,1.07851484,87384.0,87370.0,0.20259753]
[1769367789276,1.0670711,87384.0,87370.0,0.20259753]
[1769367789492,1.07851484,87384.0,87370.0,0.20259753]
[1769367789692,1.0670711,87382.0,87370.0,0.20259753]
[1769367790734,0.01144413,87381.0,87362.0,0.0004]
[1769367790867,1.0670711,87377.0,87363.0,0.20259753]
[1769367791678,1.0670711,87377.0,87350.0,0.48765684]
[1769367791679,1.0670711,87362.0,87351.0,0.0004]
[1769367791885,0.1758,87367.0,87352.0,0.20259753]
[1769367792082,0.1698519,87367.0,87352.0,0.20259753]
[1769367792335,1.0670711,87366.0,87352.0,0.20259753]
[1769367794367,0.01144623,87365.0,87352.0,0.20259753]
[1769367794579,1.07851746,87364.0,87351.0,0.00054133]
[1769367794804,0.00898718,87343.0,87330.0,0.0458]
[1769367795015,0.00898718,87343.0,87320.0,0.0003407]
[1769367795016,1.0670711,87332.0,87320.0,0.0003407]
[1769367795253,1.2429111,87332.0,87322.0,0.10091454]
[1769367795473,0.17584,87342.0,87325.0,0.2026527]
[1769367795674,0.17584,87341.0,87327.0,0.2026527]
[1769367796231,1.28147749,87347.0,87327.0,0.01145121]
[1769367796447,0.17584,87343.0,87330.0,0.2026527]
[1769367796658,1.08553634,87347.0,87330.0,0.21410351]
[1769367796868,0.17584,87345.0,87331.0,0.2026527]
[1769367797306,1.08553634,87352.0,87332.0,0.01145055]
[1769367797515,0.17584,87349.0,87339.0,0.2026527]
[1769367797777,0.16989211,87349.0,87339.0,0.2026527]
[1769367798186,1.25542845,87349.0,87339.0,0.2026527]
[1769367798398,0.00952851,87339.0,87322.0,0.2026527]
[1769367798609,1.08553634,87338.0,87322.0,0.2026527]
[1769367799447,1.08553634,87336.0,87320.0,0.01193448]
[1769367799649,1.08553634,87336.0,87320.0,0.21458718]
[1769367800068,1.08553634,87336.0,87320.0,0.20313505]
[1769367801375,1.08553634,87336.0,87320.0,0.00048235]
[1769367801594,0.17584,87339.0,87305.0,0.0004]
[1769367801595,1.08553634,87327.0,87305.0,0.0004]
[1769367801798,0.80873582,87326.0,87307.0,0.2030527]
[1769367802005,0.80853729,87326.0,87307.0,0.2030527]
[1769367802548,0.80853729,87326.0,87307.0,0.21450653]
[1769367802753,0.80853729,87326.0,87307.0,0.2030527]
[1769367802952,0.80853729,87326.0,87307.0,0.21450653]
[1769367803167,0.80853729,87326.0,87312.0,0.01145317]
[1769367803394,0.80853729,87326.0,87309.0,0.2030527]
[1769367803931,0.80853729,87326.0,87312.0,0.01145317]
[1769367804208,0.80853729,87326.0,87309.0,1.30657625]
[1769367804402,0.80853729,87326.0,87309.0,0.2030527]
[1769367804748,1.00447844,87326.0,87310.0,0.01145344]
[1769367804949,1.00447844,87326.0,87312.0,0.01145317]
[1769367805153,1.00447844,87326.0,87310.0,0.01145344]
[1769367806389,1.00447844,87326.0,87311.0,0.01145331]
[1769367806835,1.00447844,87326.0,87310.0,0.01145344]
[1769367807038,1.00447844,87326.0,87311.0,0.01145331]
[1769367807260,1.00447844,87326.0,87310.0,0.01145344]
[1769367807483,1.00447844,87326.0,87309.0,0.21450627]
[1769367807686,1.00447844,87326.0,87309.0,0.2030527]
[1769367809072,1.08553634,87324.0,87309.0,0.0004]
[1769367809259,0.19594115,87317.0,87294.0,0.0004]
[1769367809470,1.08553634,87314.0,87296.0,0.2030527]
[1769367809810,1.28147749,87314.0,87296.0,0.2030527]
[1769367810010,0.19594115,87313.0,87296.0,0.2030527]
[1769367810238,1.08553634,87312.0,87297.0,0.01145514]
[1769367810466,1.08553634,87312.0,87298.0,0.21410771]
[1769367810693,1.08553634,87312.0,87299.0,0.01145488]
[1769367810863,1.08553634,87312.0,87296.0,0.0004]
[1769367811233,0.17592,87316.0,87304.0,0.10091454]
[1769367811444,0.10196456,87359.0,87327.0,1.03777664]
[1769367811748,0.01144675,87361.0,87310.0,0.37571494]
[1769367811749,1.08553634,87350.0,87328.0,1.31363253]
[1769367811938,0.13695096,87349.0,87329.0,0.17592]
[1769367812144,1.08553634,87346.0,87329.0,0.17592]
[1769367812365,0.00048214,87351.0,87329.0,0.17592]
[1769367812366,0.13695096,87343.0,87329.0,0.17592]
[1769367812588,0.13695096,87343.0,87322.0,0.01145186]
[1769367812589,1.08553634,87340.0,87311.0,0.01145331]
[1769367812746,0.01144898,87344.0,87316.0,0.01145265]
[1769367812747,1.08553634,87335.0,87316.0,0.01145265]
[1769367812934,1.08553634,87335.0,87317.0,0.21410522]
[1769367813191,1.08553634,87335.0,87320.0,0.01145213]
[1769367813404,1.08553634,87335.0,87321.0,0.19932971]
[1769367813613,1.08553634,87335.0,87322.0,0.19932971]
[1769367813826,1.08553634,87335.0,87326.0,0.01145134]
[1769367814248,1.08553634,87335.0,87325.0,0.01145147]
[1769367814473,1.08553634,87335.0,87326.0,0.01145134]
[1769367814674,1.08553634,87335.0,87325.0,0.01145147]
[1769367814875,1.08553634,87335.0,87329.0,0.01145094]
[1769367815079,1.08553634,87335.0,87326.0,0.01145134]
[1769367815286,1.08553634,87335.0,87325.0,0.01145147]
[1769367815490,1.08553634,87335.0,87326.0,0.01145134]
[1769367815706,0.13758945,87344.0,87326.0,0.01145134]
[1769367815707,0.13758945,87344.0,87327.0,0.01145121]
[1769367815882,1.13245686,87343.0,87327.0,0.19932971]
[1769367816669,1.13245686,87343.0,87330.0,0.01145081]
[1769367816929,1.13245686,87343.0,87328.0,0.01145108]
[1769367817568,0.00048214,87351.0,87335.0,0.01145016]
[1769367817773,1.308859,87351.0,87336.0,0.19932971]
[1769367819064,1.132939,87351.0,87336.0,0.19932971]
[1769367819278,1.132939,87351.0,87336.0,0.01145003]
[1769367819479,1.132939,87351.0,87336.0,0.19932971]
[1769367819685,1.132939,87351.0,87336.0,0.21077974]
[1769367819892,0.00048214,87351.0,87346.0,0.01144872]
[1769367820097,0.00596536,87364.0,87354.0,0.01144767]
[1769367820305,0.00596536,87364.0,87354.0,0.21077738]
[1769367820512,1.13245686,87368.0,87354.0,0.19932971]
[1769367821136,0.28575086,87375.0,87356.0,0.01144741]
[1769367821341,1.13264206,87368.0,87356.0,0.19932971]
[1769367822172,0.97258895,87368.0,87356.0,0.19932971]
[1769367824520,0.97258895,87368.0,87350.0,0.19932971]
[1769367825612,0.97258895,87368.0,87348.0,1.0602889]
[1769367825613,0.97258895,87368.0,87352.0,0.01144793]
[1769367825829,0.97258895,87368.0,87352.0,0.19932971]
[1769367826233,0.97258895,87368.0,87353.0,0.0114478]
[1769367826439,0.97258895,87368.0,87352.0,0.19932971]
[1769367827004,1.07714172,87368.0,87352.0,0.19932971]
[1769367828261,0.10977773,87367.0,87344.0,0.19932971]
[1769367828464,1.13245686,87359.0,87344.0,0.19932971]
[1769367829033,1.13245686,87359.0,87344.0,0.21077869]
[1769367829239,1.13245686,87359.0,87345.0,0.19932971]
[1769367831987,1.13245686,87359.0,87345.0,0.21077856]
[1769367832200,1.13245686,87359.0,87346.0,0.19932971]
[1769367842072,0.11210208,87358.0,87343.0,0.0458]
[1769367842251,1.13245686,87345.0,87330.0,0.19932971]
[1769367842450,1.13245686,87345.0,87337.0,0.17606144]
[1769367842866,1.13245686,87345.0,87337.0,0.00014144]
[1769367843444,1.11510361,87343.0,87322.0,0.16644858]
[1769367843651,1.11524516,87343.0,87324.0,0.15499672]
[1769367844282,1.11524516,87343.0,87327.0,0.01145121]
[1769367844500,1.11524516,87343.0,87328.0,0.15499672]
[1769367844932,1.11510361,87337.0,87315.0,0.15499672]
[1769367845136,0.01145003,87336.0,87315.0,0.15601111]
[1769367845407,1.11510361,87335.0,87315.0,0.15601111]
[1769367845606,1.20624371,87329.0,87314.0,0.17588]
[1769367845813,0.0911401,87329.0,87314.0,0.17588]
[1769367846042,1.11510361,87328.0,87314.0,0.17588]
[1769367846659,1.12655469,87328.0,87313.0,0.15499672]
[1769367846789,0.01145199,87321.0,87313.0,0.15499672]
[1769367847007,0.01145186,87322.0,87313.0,0.15499672]
[1769367847210,0.01145252,87317.0,87308.0,0.0458]
[1769367847415,0.01145383,87307.0,87297.0,0.15499672]
[1769367847615,0.01145449,87302.0,87288.0,1.13118788]
[1769367847876,0.05728032,87290.0,87286.0,0.0004]
[1769367848084,1.12655941,87292.0,87286.0,0.0004]
[1769367848280,0.0114554,87295.0,87286.0,0.0004]
[1769367848502,0.01145554,87294.0,87286.0,0.15539672]
[1769367848638,0.0114554,87295.0,87286.0,0.1555384]
[1769367848841,0.01145554,87294.0,87286.0,0.1555384]
[1769367849075,0.01145606,87290.0,87286.0,0.1555384]
[1769367849269,0.01145619,87289.0,87284.0,0.17628]
[1769367849500,0.01145619,87289.0,87286.0,0.15499672]
[1769367849889,0.01145632,87288.0,87284.0,0.0004]
[1769367850088,0.06873842,87288.0,87284.0,0.0004]
[1769367850267,0.01145632,87288.0,87284.0,0.0004]
[1769367851262,0.01145632,87288.0,87286.0,0.15499672]
[1769367851576,0.05728295,87286.0,87284.0,0.0004]
[1769367851986,0.06873849,87288.0,87284.0,0.0004]
[1769367852214,0.05728283,87287.0,87285.0,1e-08]
[1769367852435,1.11510361,87280.0,87278.0,0.0004299]
[1769367852642,0.05728742,87280.0,87278.0,0.0004299]
[1769367852797,0.01145724,87281.0,87272.0,0.15499672]
[1769367852798,0.0114579,87276.0,87272.0,0.14946162]
[1769367852998,0.06874518,87279.0,87272.0,0.14946162]
[1769367853211,0.01145777,87277.0,87263.0,1.13118788]
[1769367853387,0.01145803,87275.0,87265.0,0.15499672]
[1769367853603,0.01145829,87273.0,87265.0,0.15499672]
[1769367853808,0.01145698,87283.0,87273.0,0.00951787]
[1769367854125,0.0114575,87279.0,87273.0,0.00951787]
[1769367854308,1.12656059,87283.0,87273.0,0.00951787]
[1769367854511,0.94215235,87283.0,87273.0,0.00951787]
[1769367854946,0.01145724,87281.0,87273.0,0.00951787]
[1769367855822,0.01145737,87280.0,87273.0,0.00951787]
[1769367856022,0.01145724,87281.0,87273.0,0.00951787]
[1769367856226,0.93069537,87283.0,87270.0,0.15499672]
[1769367856938,0.94215235,87283.0,87270.0,0.15499672]
[1769367857094,0.01145711,87282.0,87270.0,0.15499672]
[1769367857871,0.94215235,87283.0,87270.0,0.15499672]
[1769367858158,0.01145685,87284.0,87270.0,0.15499672]
[1769367858390,0.01145645,87287.0,87270.0,0.15499672]
[1769367858584,0.01145698,87283.0,87270.0,0.15499672]
[1769367858974,0.01145672,87285.0,87270.0,0.15499672]
[1769367859170,0.01145685,87284.0,87270.0,0.15499672]
[1769367859370,0.01145724,87281.0,87270.0,0.15499672]
[1769367859781,0.01145698,87283.0,87270.0,0.15526036]
[1769367859988,0.01145711,87282.0,87270.0,0.15526036]
[1769367860364,0.01145698,87283.0,87270.0,0.15526036]
[1769367860564,0.01145711,87282.0,87270.0,0.15526036]
[1769367860786,0.01145724,87281.0,87270.0,0.15526036]
[1769367860997,0.01145711,87282.0,87270.0,0.15526036]
[1769367861214,0.01145724,87281.0,87270.0,0.15526036]
[1769367861420,0.01145711,87282.0,87270.0,0.15526036]
[1769367862166,0.01145724,87281.0,87270.0,0.15526036]
[1769367862374,0.01145737,87280.0,87270.0,0.15526036]
[1769367862579,0.01145724,87281.0,87270.0,0.15499672]
[1769367862772,0.01145724,87281.0,87270.0,0.15526035]
[1769367862985,0.01145737,87280.0,87270.0,0.15526035]
[1769367863199,1.08940804,87274.0,87263.0,0.00047254]
[1769367863407,0.01145856,87271.0,87263.0,0.00047254]
[1769367863611,0.01145856,87271.0,87256.0,0.19385379]
[1769367863612,0.00047254,87263.0,87256.0,0.0458]
[1769367863812,1.08940804,87264.0,87256.0,0.00014173]
[1769367864027,0.01145961,87263.0,87256.0,0.00014173]
[1769367864242,1.08940804,87264.0,87256.0,0.00014173]
[1769367865073,1.23982249,87269.0,87256.0,0.00014173]
[1769367867435,1.25128131,87269.0,87256.0,0.00014173]
[1769367867645,0.15041445,87264.0,87256.0,0.00014173]
[1769367867853,1.10086765,87263.0,87256.0,0.00014173]
[1769367868063,0.15041445,87258.0,87233.0,0.14805379]
[1769367868271,1.08940804,87255.0,87233.0,0.32405379]
[1769367868482,1.08940804,87255.0,87237.0,0.14805379]
[1769367868694,1.23982249,87255.0,87237.0,0.14805379]
[1769367868920,1.08940804,87252.0,87233.0,0.176]
[1769367869141,0.15041445,87249.0,87231.0,0.14805379]
[1769367869369,1.08940804,87246.0,87231.0,0.14805379]
[1769367869601,0.06876429,87255.0,87231.0,0.14805379]
[1769367869602,0.176,87248.0,87246.0,0.00951787]
[1769367869818,0.176,87248.0,87240.0,0.14805379]
[1769367870006,0.00014148,87258.0,87241.0,1.13175941]
[1769367870224,0.17604,87252.0,87244.0,0.14805379]
[1769367871617,0.00014148,87258.0,87244.0,0.14805379]
[1769367871827,0.17604,87257.0,87244.0,0.14805379]
[1769367872406,1.08940804,87255.0,87232.0,0.01146368]
[1769367872611,1.08940804,87253.0,87235.0,0.01146328]
[1769367872818,1.08940804,87253.0,87236.0,0.14805379]
[1769367873061,1.08940804,87253.0,87236.0,0.11435113]
[1769367873223,1.08940804,87253.0,87237.0,0.11435113]
[1769367874518,0.11343236,87252.0,87230.0,0.11549752]
[1769367874727,1.15323985,87249.0,87230.0,0.11549752]
[1769367874930,0.01146092,87253.0,87230.0,0.11435113]
[1769367874931,1.15323985,87247.0,87230.0,0.11435113]
[1769367875138,1.15323985,87245.0,87230.0,0.11435113]
[1769367875582,1.15323985,87253.0,87232.0,0.11435113]
[1769367876207,1.15323985,87253.0,87232.0,1.10319437]
[1769367876364,1.15323985,87253.0,87233.0,0.11435113]
[1769367876782,0.00014148,87258.0,87236.0,0.01146315]
[1769367877135,0.11294337,87257.0,87242.0,1.10319437]
[1769367877364,0.28898337,87257.0,87243.0,0.11435113]
[1769367877566,0.11294337,87256.0,87243.0,0.11435113]
[1769367878014,0.16871529,87277.0,87257.0,1.2175455]
[1769367878015,1.15323985,87273.0,87257.0,1.2175455]
[1769367878228,0.17655254,87273.0,87258.0,0.11435113]
[1769367878431,1.15323985,87272.0,87257.0,0.11435113]
[1769367878627,1.26667221,87270.0,87250.0,0.11435113]
[1769367878866,1.26667221,87270.0,87252.0,0.11435113]
[1769367879293,0.17655254,87273.0,87255.0,0.11435113]
[1769367879514,0.00047254,87273.0,87257.0,1.11465476]
[1769367879720,0.00047254,87273.0,87263.0,1.10319437]
[1769367879954,0.00047254,87273.0,87264.0,0.11435113]
[1769367880791,0.00047254,87273.0,87256.0,1.10319437]
[1769367881012,1.15323985,87272.0,87257.0,0.11435113]
[1769367881268,0.00047254,87273.0,87257.0,0.11435113]
[1769367881693,0.00047254,87273.0,87258.0,0.11435113]
[1769367883374,0.00047254,87273.0,87259.0,0.01146013]
[1769367883593,0.00047254,87273.0,87260.0,0.11435113]
[1769367884863,0.00047254,87273.0,87260.0,0.12581113]
[1769367885108,0.00047254,87273.0,87260.0,0.11435113]
[1769367886194,0.00047254,87273.0,87254.0,0.05730342]
[1769367886195,0.00047254,87273.0,87250.0,0.01146131]
[1769367886445,0.11343236,87269.0,87250.0,0.11435113]
[1769367886661,0.11343236,87269.0,87252.0,0.11435113]
[1769367886662,1.15323985,87268.0,87252.0,0.11435113]
[1769367886867,1.15323985,87268.0,87252.0,0.12581218]
[1769367887072,1.15323985,87268.0,87253.0,0.11435113]
[1769367887284,1.15323985,87268.0,87254.0,0.01146079]
[1769367887489,0.00047254,87273.0,87251.0,0.18754118]
[1769367887490,0.17655254,87273.0,87261.0,0.125811]
[1769367887703,0.00047254,87273.0,87264.0,0.11435113]
[1769367888935,0.00047254,87273.0,87257.0,1.11465476]
[1769367889139,0.00047254,87273.0,87258.0,0.11435113]
[1769367889344,1.15323985,87272.0,87247.0,1.10319437]
[1769367889543,1.26667221,87270.0,87250.0,0.11435113]
[1769367889742,1.26667221,87270.0,87251.0,0.29043113]
[1769367889928,1.2664432,87269.0,87252.0,0.11435113]
[1769367890135,0.11320335,87268.0,87252.0,0.11435113]
[1769367892234,0.11320335,87268.0,87251.0,0.17608]
[1769367892235,0.00047254,87273.0,87257.0,0.01146039]
[1769367892452,0.17604,87272.0,87258.0,0.12581139]
[1769367892647,0.17604,87272.0,87260.0,0.11435113]
[1769367892853,0.17651254,87273.0,87263.0,0.11435113]
[1769367893365,0.17651254,87273.0,87258.0,0.11435113]
[1769367894868,0.11343236,87268.0,87250.0,0.01146131]
[1769367895068,1.15323985,87267.0,87249.0,0.01146144]
[1769367895290,1.15323985,87267.0,87252.0,0.01146105]
[1769367895501,0.30122873,87270.0,87255.0,0.11435113]
[1769367895698,1.32975239,87273.0,87255.0,0.11435113]
[1769367896943,1.15323985,87271.0,87247.0,0.01146171]
[1769367897102,1.26667221,87269.0,87248.0,0.11435113]
[1769367897298,1.26667221,87269.0,87247.0,0.01146171]
[1769367897501,0.11343236,87269.0,87251.0,0.11435113]
[1769367897702,0.11343236,87269.0,87253.0,0.11435113]
[1769367898167,0.11343236,87269.0,87255.0,0.01146066]
[1769367898514,0.11343236,87269.0,87254.0,0.12581192]
[1769367898725,0.17604,87270.0,87255.0,0.01146066]
[1769367898933,0.17604,87270.0,87254.0,0.11435113]
[1769367899163,1.15323985,87269.0,87254.0,0.11435113]
[1769367901324,1.26667221,87269.0,87248.0,0.11435113]
[1769367901504,1.15323985,87263.0,87240.0,0.26255113]
[1769367901933,1.15323985,87263.0,87240.0,0.11435113]
[1769367901934,0.11343236,87258.0,87240.0,0.11435113]
[1769367902139,0.11343236,87256.0,87232.0,0.11435113]
[1769367902339,1.26667221,87253.0,87230.0,0.11435113]
[1769367902556,1.26667221,87253.0,87230.0,0.12581507]
[1769367902780,1.26667221,87253.0,87231.0,0.11435113]
[1769367902999,0.11343236,87250.0,87231.0,0.11435113]
[1769367903204,1.23217297,87249.0,87231.0,0.12581494]
[1769367903408,1.23217297,87249.0,87231.0,0.11435113]
[1769367903564,1.23217297,87249.0,87231.0,0.12581494]
[1769367903773,1.23217297,87249.0,87232.0,0.01146368]
[1769367903972,1.23217297,87249.0,87232.0,0.07584316]
[1769367904176,1.23217297,87249.0,87232.0,0.08730684]
[1769367904402,0.01145974,87262.0,87227.0,0.18750434]
[1769367904403,0.07915992,87255.0,87238.0,0.01146289]
[1769367904625,1.23217297,87255.0,87238.0,0.01146289]
[1769367904931,1.15301305,87253.0,87237.0,0.08730618]
[1769367905062,1.15301305,87253.0,87237.0,0.07584316]
[1769367905539,1.15301305,87253.0,87237.0,0.08730618]
[1769367905773,1.15301305,87253.0,87237.0,0.07584316]
[1769367906386,1.15301305,87253.0,87237.0,0.08730618]
[1769367906778,1.15301305,87253.0,87237.0,0.07584316]
[1769367907000,1.15301305,87253.0,87239.0,0.01146276]
[1769367907425,1.15301305,87253.0,87232.0,0.22927124]
[1769367907426,1.15301305,87272.0,87248.0,0.01146158]
[1769367907636,1.32909305,87272.0,87251.0,1.10793351]
[1769367907836,1.32909305,87272.0,87252.0,0.07584316]
[1769367908383,1.32909305,87272.0,87247.0,0.01146171]
[1769367908384,1.15301305,87266.0,87239.0,0.01146276]
[1769367908590,1.23217297,87264.0,87243.0,0.07676394]
[1769367908996,0.07915992,87261.0,87235.0,0.08730644]
[1769367909310,1.15301305,87256.0,87235.0,0.08730644]
[1769367909512,1.15216114,87256.0,87235.0,0.08730644]
[1769367909674,1.15301305,87260.0,87240.0,0.08730579]
[1769367909879,1.15301305,87260.0,87240.0,0.07584316]
[1769367910102,1.15301305,87260.0,87240.0,0.08730579]
[1769367910316,1.15301305,87260.0,87241.0,0.07584316]
[1769367910772,1.15301305,87260.0,87243.0,0.08730539]
[1769367910907,1.15301305,87260.0,87243.0,0.07584316]
[1769367912174,1.16447331,87258.0,87233.0,0.07584316]
[1769367912377,1.15301305,87254.0,87233.0,0.07584316]
[1769367912576,1.14349518,87254.0,87232.0,0.07584316]
[1769367912877,0.01146,87260.0,87232.0,0.07584316]
[1769367912878,1.15301305,87252.0,87232.0,0.07584316]
[1769367913244,1.23217297,87250.0,87232.0,0.07584316]
[1769367913656,1.15301305,87250.0,87232.0,0.07584316]
[1769367913863,1.23217297,87248.0,87232.0,0.07584316]
[1769367916525,1.23217297,87248.0,87227.0,0.17608]
[1769367916526,0.06400219,87249.0,87227.0,0.17608]
[1769367916731,0.43389256,87250.0,87227.0,0.17608]
[1769367916732,1.13261583,87246.0,87227.0,0.17608]
[1769367917030,1.13261583,87244.0,87227.0,0.17608]
[1769367917808,1.19661802,87244.0,87227.0,0.17608]
[1769367918015,0.06400219,87243.0,87227.0,0.17622148]
[1769367918188,0.5749574,87283.0,87222.0,0.0004]
[1769367918189,0.06400219,87237.0,87222.0,0.0004]
[1769367918401,0.06400219,87233.0,87222.0,0.00054171]
[1769367918577,0.01146263,87240.0,87222.0,0.00054171]
[1769367918578,0.06358151,87231.0,87222.0,0.00054171]
[1769367918788,1.13089719,87231.0,87222.0,0.00054171]
[1769367918990,1.13261583,87229.0,87222.0,0.00054171]
[1769367919212,1.13175581,87227.0,87204.0,0.06974611]
[1769367919450,1.13089477,87225.0,87204.0,0.06974611]
[1769367919652,1.19230927,87223.0,87204.0,0.06974611]
[1769367919825,1.12227135,87223.0,87204.0,0.08121347]
[1769367920022,1.19230037,87222.0,87207.0,0.01146696]
[1769367920227,1.13261583,87222.0,87211.0,0.01146644]
[1769367920600,0.00014166,87227.0,87212.0,1.12844688]
[1769367920805,1.13261583,87226.0,87208.0,0.08121294]
[1769367921255,1.30869583,87226.0,87211.0,0.06974611]
[1769367921651,1.30411459,87226.0,87212.0,0.01146631]
[1769367921823,1.29961309,87226.0,87211.0,0.06974611]
[1769367922087,1.29961309,87226.0,87211.0,0.08121255]
[1769367922259,1.29961309,87226.0,87213.0,0.01146618]
[1769367922983,1.29961309,87226.0,87211.0,0.06974611]
[1769367923199,1.29961309,87226.0,87211.0,0.08121255]
[1769367924167,1.29961309,87226.0,87212.0,0.01146631]
[1769367924526,1.29961309,87226.0,87213.0,0.01146618]
[1769367924735,1.29961309,87226.0,87214.0,0.01146604]
[1769367924939,1.29961309,87226.0,87211.0,0.06974611]
[1769367925138,1.29961309,87226.0,87212.0,0.01146631]
[1769367925305,1.29961309,87226.0,87211.0,0.08121255]
[1769367925724,1.29961309,87226.0,87211.0,0.06974611]
[1769367925954,1.29961309,87226.0,87204.0,0.08121347]
[1769367926157,1.13261583,87224.0,87205.0,0.08121334]
[1769367926534,1.13261583,87224.0,87207.0,0.06974611]
[1769367926747,1.13261583,87224.0,87206.0,1.12844767]
[1769367926954,1.19661802,87224.0,87206.0,0.06974611]
[1769367927199,1.13261583,87222.0,87206.0,0.06974611]
[1769367927598,1.13261583,87222.0,87207.0,0.01146696]
[1769367928006,1.13261583,87222.0,87208.0,0.05733381]
[1769367928290,1.13261583,87222.0,87212.0,0.01146631]
[1769367928534,0.00014166,87227.0,87214.0,1.11698057]
[1769367928719,1.13261583,87251.0,87230.0,0.01146394]
[1769367928869,0.00026374,87250.0,87233.0,1.18672668]
[1769367929078,1.13261583,87249.0,87233.0,0.06974611]
[1769367929279,1.13261583,87247.0,87223.0,0.06974611]
[1769367929480,0.06400219,87244.0,87233.0,0.06878103]
[1769367929676,0.17612,87244.0,87237.0,0.04585184]
[1769367929889,0.17612,87244.0,87235.0,0.01146328]
[1769367930150,0.17612,87244.0,87236.0,0.01146315]
[1769367930467,1.13261583,87243.0,87231.0,0.06974611]
[1769367930875,1.13261583,87243.0,87237.0,0.01146302]
[1769367931025,0.17612,87246.0,87239.0,0.01146276]
[1769367931221,0.00026374,87250.0,87240.0,0.01146263]
[1769367931428,0.00026374,87250.0,87239.0,0.01146276]
[1769367931429,0.17612,87255.0,87248.0,0.01146158]
[1769367931634,0.17612,87254.0,87248.0,0.01146158]
[1769367931837,0.00014179,87255.0,87248.0,0.01146158]
[1769367931838,0.00014179,87255.0,87251.0,0.01146118]
[1769367932064,0.17626179,87255.0,87251.0,0.01146118]
[1769367932289,1.30887762,87255.0,87249.0,0.05730713]
[1769367932472,1.30887762,87255.0,87247.0,0.01146171]
[1769367932697,1.30887762,87255.0,87246.0,0.01146184]
[1769367932915,1.13275762,87255.0,87249.0,0.01146144]
[1769367933121,1.13275762,87255.0,87234.0,1.11698057]
[1769367933122,1.13275762,87255.0,87245.0,0.01146197]
[1769367933251,0.10091454,87254.0,87239.0,0.08120887]
[1769367933452,1.09322739,87253.0,87239.0,0.01146276]
[1769367933728,1.14395722,87253.0,87241.0,0.0114625]
[1769367934158,1.14395722,87253.0,87243.0,0.01146223]
[1769367934369,1.14395722,87253.0,87245.0,0.01146197]
[1769367934617,0.00014179,87255.0,87247.0,0.01146171]
[1769367934823,1.09322739,87254.0,87238.0,0.01146289]
[1769367935029,1.09322739,87254.0,87239.0,0.01146276]
[1769367935255,0.17626179,87255.0,87232.0,0.22927146]
[1769367935256,0.00014179,87255.0,87249.0,0.01146144]
[1769367935467,0.10091454,87250.0,87197.0,0.0004]
[1769367935681,1.09322739,87227.0,87214.0,0.08112]
[1769367936328,1.09322739,87227.0,87214.0,0.07112]
[1769367936949,1.09322739,87227.0,87214.0,0.03588]
[1769367937166,1.09322739,87227.0,87215.0,0.17612]
[1769367937392,0.0359818,87228.0,87215.0,0.17612]
[1769367937393,0.003433,87228.0,87215.0,0.17612]
[1769367937605,1.09322739,87243.0,87220.0,0.04637353]
[1769367937812,0.05072983,87244.0,87221.0,0.04637353]
[1769367937813,1.09322739,87241.0,87221.0,0.04637353]
[1769367938025,1.09322739,87239.0,87221.0,0.04637353]
[1769367938232,1.09349113,87238.0,87221.0,0.04637353]
[1769367938444,1.09322739,87238.0,87221.0,0.04637353]
[1769367940400,0.0460891,87253.0,87222.0,0.04637353]
[1769367940655,1.09322739,87247.0,87226.0,0.04637353]
[1769367940856,1.09322739,87245.0,87226.0,0.04637353]
[1769367941095,0.00026374,87244.0,87227.0,0.04637353]
[1769367941507,0.00026374,87244.0,87228.0,0.04637353]
[1769367942154,0.00026374,87244.0,87230.0,0.04637353]
[1769367942392,1.09322739,87247.0,87230.0,0.04637353]
[1769367942600,1.09322739,87245.0,87230.0,0.04637353]
[1769367942816,0.00026374,87244.0,87230.0,0.04637353]
[1769367943027,1.13509039,87268.0,87246.0,1.10879766]
[1769367943236,1.13509039,87268.0,87248.0,0.04637353]
[1769367943866,1.09322739,87263.0,87248.0,0.04637353]
[1769367944072,1.09322739,87263.0,87249.0,0.17612]
[1769367944278,1.09322739,87259.0,87247.0,0.04588]
[1769367944478,1.09322739,87259.0,87250.0,0.17612]
[1769367946781,1.09322739,87259.0,87250.0,0.02930294]
[1769367947589,1.09322739,87259.0,87247.0,0.04588]
[1769367947747,1.09322739,87251.0,87248.0,0.10148852]
[1769367947924,1.12920745,87250.0,87249.0,0.2049]
[1769367948124,1.12920745,87250.0,87249.0,0.1759844]
[1769367948759,1.12920745,87250.0,87249.0,0.1259844]
[1769367949137,0.3765848,87258.0,87249.0,0.1259844]
[1769367949138,0.3765848,87260.0,87249.0,0.1259844]
[1769367949341,0.001,87259.0,87250.0,1.06242413]
[1769367949622,0.00014174,87260.0,87251.0,0.04637353]
[1769367951482,0.00014174,87260.0,87249.0,0.1259844]
[1769367951698,1.09336913,87260.0,87249.0,0.1259844]
[1769367952096,0.00014174,87260.0,87249.0,0.1259844]
[1769367952293,0.00014174,87260.0,87249.0,0.17235793]
[1769367952704,0.38812038,87270.0,87249.0,0.17235793]
[1769367952905,1.1642104,87269.0,87251.0,0.05909146]
[1769367953103,0.11303275,87268.0,87251.0,0.05909146]
[1769367953529,0.98852398,87267.0,87251.0,0.05909146]
[1769367956003,0.39712458,87270.0,87253.0,0.05234592]
[1769367956004,0.00047254,87270.0,87253.0,0.05234592]
[1769367956208,0.98852398,87269.0,87253.0,0.05234592]
[1769367956811,0.98852398,87269.0,87254.0,0.17612]
[1769367957164,0.98852398,87269.0,87255.0,0.05234592]
[1769367957749,0.00047254,87270.0,87255.0,0.05234592]
[1769367958362,0.98899652,87270.0,87255.0,0.05234592]
[1769367959039,0.00047254,87270.0,87257.0,0.05009734]
[1769367959782,0.00047254,87270.0,87258.0,0.04637353]
[1769367960906,0.98852398,87269.0,87258.0,0.04637353]
[1769367961113,0.00047254,87270.0,87258.0,0.04637353]
[1769367962095,0.37713423,87270.0,87258.0,0.04637353]
[1769367962305,0.98852398,87269.0,87259.0,0.22196]
[1769367962504,0.98852398,87269.0,87260.0,0.04588]
[1769367963849,0.00047254,87270.0,87260.0,0.04588]
[1769367964844,0.00047254,87270.0,87261.0,0.05454431]
[1769367966240,0.00047254,87270.0,87262.0,0.22192]
[1769367967070,0.00047254,87270.0,87248.0,0.01146158]
[1769367967071,0.00047254,87270.0,87189.0,0.30366155]
[1769367967271,0.00047254,87270.0,87093.0,0.68277603]
[1769367967272,1.03819585,87261.0,87232.0,1.07978555]
[1769367967531,1.03819585,87261.0,87236.0,1.06832187]
[1769367967532,0.98852398,87259.0,87236.0,1.06832187]
[1769367967706,0.01145961,87263.0,87231.0,0.22192]
[1769367967707,0.01145645,87287.0,87256.0,0.01146052]
[1769367968015,1.13711787,87285.0,87265.0,0.05454431]
[1769367968326,1.13711787,87285.0,87270.0,0.05454431]
[1769367968566,1.13711787,87285.0,87271.0,0.17608]
[1769367969737,1.13711787,87283.0,87272.0,0.17608]
[1769367971004,1.13711787,87280.0,87273.0,0.17608]